bitfinex-derivatives/quotes_ETHF0:USTF0_20251223
["timestamp","ask_amount","ask_price","bid_price","bid_amount"]
[1766488902286,3.53540566,2974.7,2973.9,3.364]
[1766488902488,0.0183,2974.6,2973.9,3.364]
[1766488902889,3.53540566,2974.7,2973.9,3.364]
[1766488903095,0.0183,2974.6,2973.9,3.364]
[1766488903300,0.17140566,2974.7,2973.9,3.364]
[1766488903600,0.0183,2974.5,2973.9,3.364]
[1766488903799,3.364,2974.6,2973.9,3.364]
[1766488903999,0.0183,2974.4,2973.9,3.364]
[1766488905498,0.0171,2974.5,2973.9,3.364]
[1766488906098,0.17140566,2974.7,2974.0,0.0171]
[1766488906297,3.364,2975.0,2974.0,0.0171]
[1766488906497,3.364,2975.1,2973.9,3.364]
[1766488906797,0.0176,2974.9,2974.0,0.01759999]
[1766488906995,3.364,2975.1,2974.0,0.01759999]
[1766488907194,0.0176,2975.0,2973.9,3.364]
[1766488907602,3.5356032,2975.1,2974.0,0.02099999]
[1766488907802,3.5356032,2975.1,2974.1,3.364]
[1766488907999,0.021,2975.0,2974.1,3.36682271]
[1766488908502,3.5356032,2975.1,2974.1,3.36682271]
[1766488908701,0.021,2975.0,2974.1,3.36682271]
[1766488909002,0.021,2975.0,2974.2,0.02099999]
[1766488909202,3.5356032,2975.1,2974.2,0.02099999]
[1766488909390,3.5356032,2975.1,2974.3,3.364]
[1766488909595,0.021,2975.0,2974.3,3.364]
[1766488909795,0.021,2975.0,2974.1,6.28382271]
[1766488909991,3.5356032,2975.1,2974.1,6.28382271]
[1766488910192,3.5356032,2975.1,2974.2,3.363]
[1766488910611,0.021,2975.0,2974.3,0.02099999]
[1766488911403,0.021,2975.0,2974.3,3.38399999]
[1766488911992,3.5356032,2975.1,2974.3,3.38399999]
[1766488912192,3.5356032,2975.1,2974.3,3.363]
[1766488912193,0.0205,2975.0,2974.3,3.363]
[1766488912605,3.5356032,2975.1,2974.3,3.363]
[1766488912806,0.16818,2974.8,2974.2,3.363]
[1766488913004,3.53118,2974.8,2974.2,3.1659]
[1766488913194,0.16818,2974.7,2974.2,3.1659]
[1766488913399,0.1682,2974.5,2973.4,0.00504506]
[1766488913601,3.363,2974.4,2973.5,3.363]
[1766488913793,3.3879,2974.4,2973.5,3.42770002]
[1766488914005,3.363,2974.4,2973.4,4.81904506]
[1766488914203,0.0249,2974.3,2973.6,3.363]
[1766488914707,3.363,2974.4,2973.6,3.36596806]
[1766488915006,3.363,2974.4,2973.6,3.39086806]
[1766488915007,0.0249,2974.3,2973.6,3.39086806]
[1766488915505,3.363,2974.4,2973.6,3.39086806]
[1766488915706,0.0249,2974.3,2973.6,3.39086806]
[1766488916201,3.363,2974.4,2973.6,3.36596806]
[1766488916403,0.0249,2974.3,2973.7,0.0249]
[1766488916802,0.1682,2974.5,2973.7,0.0249]
[1766488916998,0.1682,2974.5,2973.6,3.36596806]
[1766488917504,3.363,2974.8,2973.6,3.36596806]
[1766488917709,3.363,2974.8,2973.7,0.0254]
[1766488917710,3.3884,2974.8,2973.7,0.0254]
[1766488917904,3.3884,2974.8,2973.6,3.36596806]
[1766488918207,3.3884,2974.8,2973.7,0.0254]
[1766488918706,3.363,2974.8,2973.6,0.00296806]
[1766488918907,0.0254,2974.7,2973.7,8.706]
[1766488919104,0.16819,2974.5,2973.7,3.363]
[1766488919409,3.363,2974.4,2973.7,3.363]
[1766488919708,0.1682,2974.3,2973.7,3.363]
[1766488919904,0.1682,2974.3,2972.4,8.409]
[1766488919905,0.03044505,2974.3,2972.4,8.409]
[1766488920112,0.96895918,2974.3,2972.5,8.327]
[1766488920412,0.16823,2973.9,2972.5,8.3522]
[1766488920705,3.363,2973.8,2972.5,8.327]
[1766488920906,3.363,2973.8,2972.6,0.0252]
[1766488921111,3.363,2973.8,2972.9,0.00504506]
[1766488921308,0.16823,2973.9,2973.0,3.363]
[1766488921506,3.363,2974.0,2973.0,3.363]
[1766488921706,3.36804505,2974.3,2973.0,3.363]
[1766488921905,0.0243,2974.2,2973.1,0.0243]
[1766488922303,0.00504505,2974.3,2973.2,5.8273]
[1766488922509,0.00504505,2974.3,2973.2,5.803]
[1766488923510,0.0242,2974.2,2972.9,0.00504506]
[1766488923716,0.0242,2974.2,2973.0,9.636]
[1766488924016,0.00504505,2974.3,2973.0,9.636]
[1766488924214,0.00504505,2974.3,2973.1,0.0242]
[1766488924414,0.00504505,2974.3,2973.2,3.381]
[1766488924618,0.00504505,2974.3,2973.2,6.744]
[1766488924819,0.02924505,2974.3,2973.3,0.0242]
[1766488925222,0.00504505,2974.3,2972.9,0.00504506]
[1766488925423,0.0242,2974.2,2973.0,4.545]
[1766488925822,3.3872,2974.2,2972.9,40.80504506]
[1766488926013,3.363,2974.2,2973.0,9.6582]
[1766488926818,0.0242,2974.1,2973.0,9.634]
[1766488927518,3.363,2974.2,2973.1,0.0242]
[1766488927722,3.29829998,2974.2,2973.0,9.634]
[1766488927912,3.32249998,2974.2,2973.1,0.0242]
[1766488928421,3.32249998,2974.2,2973.0,9.634]
[1766488928718,0.00504505,2974.3,2973.1,0.0259]
[1766488928921,3.36804505,2974.3,2973.1,0.0259]
[1766488929118,3.39394505,2974.3,2973.0,9.634]
[1766488930123,0.03094505,2974.3,2973.0,9.634]
[1766488930515,0.00504505,2974.3,2973.1,0.0187]
[1766488930914,0.00504505,2974.3,2973.0,9.634]
[1766488931116,0.02374505,2974.3,2973.1,0.0187]
[1766488931522,0.00504505,2974.3,2973.0,9.634]
[1766488931831,0.00504505,2974.3,2973.1,0.0184]
[1766488932418,0.00504505,2974.3,2973.0,9.634]
[1766488932613,0.02344505,2974.3,2973.1,0.0184]
[1766488933121,0.02344505,2974.3,2973.0,9.634]
[1766488933423,0.02344505,2974.3,2973.1,0.0184]
[1766488934013,0.00504505,2974.3,2973.2,0.0184]
[1766488934213,0.00504505,2974.3,2973.3,3.363]
[1766488934919,0.00504505,2974.3,2973.4,0.0184]
[1766488934920,4.505e-05,2974.3,2973.4,0.0184]
[1766488935423,4.505e-05,2974.3,2973.5,3.363]
[1766488940724,0.16817,2974.9,2973.5,3.363]
[1766488945826,0.16817,2974.9,2973.0,2.19858104]
[1766488946026,0.16817,2974.9,2973.1,18.031]
[1766488946628,0.16817,2974.9,2973.2,18.035]
[1766488947619,3.363,2975.0,2973.3,3.363]
[1766488947817,0.0034432,2975.1,2973.3,3.363]
[1766488947818,0.0034432,2975.1,2973.4,6.274]
[1766488948019,0.16819,2974.6,2973.4,6.274]
[1766488948225,0.16819,2974.6,2973.5,0.0152]
[1766488948226,3.53119,2974.6,2973.5,0.0152]
[1766488948431,3.53119,2974.6,2973.6,3.363]
[1766488948925,3.53119,2974.6,2973.7,0.0152]
[1766488949318,0.16819,2974.6,2973.6,3.363]
[1766488949519,3.53119,2974.6,2973.7,0.0147]
[1766488950126,3.53119,2974.6,2973.6,3.363]
[1766488950426,3.53119,2974.6,2973.7,0.0147]
[1766488950623,3.53119,2974.6,2973.6,3.363]
[1766488950823,3.53119,2974.6,2973.7,0.0147]
[1766488951426,0.16819,2974.6,2973.6,3.363]
[1766488951726,0.16819,2974.6,2973.7,0.0147]
[1766488952126,0.16819,2974.6,2973.6,3.363]
[1766488952526,0.16819,2974.6,2973.7,0.0147]
[1766488953128,0.16819,2974.6,2973.6,3.363]
[1766488956932,5.39330104,2974.5,2972.9,0.00504506]
[1766488957233,0.16821,2974.2,2973.0,3.363]
[1766488957424,3.363,2974.1,2973.0,3.3774]
[1766488957730,3.363,2974.1,2973.0,3.363]
[1766488957929,0.0144,2974.0,2973.1,0.0144]
[1766488958731,0.16824,2973.7,2972.9,0.00504506]
[1766488959034,3.363,2973.6,2972.9,0.00504506]
[1766488960131,3.3774,2973.8,2973.0,0.0144]
[1766488960324,3.3774,2973.8,2972.9,3.36804506]
[1766488960325,3.53123,2973.8,2972.9,3.36804506]
[1766488960525,3.53123,2973.8,2972.9,0.00504506]
[1766488960920,0.18264,2973.7,2972.9,0.00504506]
[1766488961126,0.16826,2973.4,2972.6,3.363]
[1766488961334,3.363,2973.3,2972.6,1.3142]
[1766488961528,3.53126,2973.3,2972.4,0.011]
[1766488961730,0.011,2973.2,2972.0,0.558]
[1766488961931,0.011,2973.2,2972.1,3.363]
[1766488962133,0.011,2973.2,2971.5,40.8]
[1766488962329,0.00504506,2972.6,2972.1,0.00504506]
[1766488962531,0.00817713,2972.6,2972.2,3.364]
[1766488962833,3.364,2973.0,2972.2,3.4263]
[1766488963030,3.364,2973.0,2972.2,3.364]
[1766488963631,3.364,2973.0,2972.3,0.0625]
[1766488963841,3.36779046,2973.0,2972.2,3.364]
[1766488964037,3.36779046,2973.0,2972.3,0.0625]
[1766488964038,3.43029046,2973.0,2972.3,0.0625]
[1766488964225,3.43029046,2973.0,2972.1,0.00851296]
[1766488964433,3.43029046,2973.0,2972.2,3.364]
[1766488964937,3.43029046,2973.0,2972.3,0.0625]
[1766488965436,3.43029046,2973.0,2972.2,3.364]
[1766488965631,3.43029046,2973.0,2972.3,0.0625]
[1766488965830,3.43029046,2973.0,2972.3,3.4265]
[1766488966030,3.43029046,2973.0,2972.3,3.364]
[1766488966237,3.36779046,2973.0,2972.4,0.0625]
[1766488966839,3.42969046,2973.0,2972.4,0.0625]
[1766488967029,3.42969046,2973.0,2972.1,0.00851296]
[1766488967030,3.36779046,2973.0,2972.1,0.00851296]
[1766488967633,0.0585,2972.9,2972.2,3.42249999]
[1766488967832,0.0585,2972.9,2972.2,0.05849999]
[1766488968032,0.0585,2972.9,2972.3,3.364]
[1766488968531,3.36779046,2973.0,2972.3,3.364]
[1766488968732,0.0585,2972.9,2972.2,0.05849999]
[1766488968931,0.0585,2972.9,2972.3,3.364]
[1766488969331,3.36779046,2973.0,2972.3,3.364]
[1766488970340,0.16826,2973.3,2972.4,0.05849999]
[1766488970639,0.16826,2973.3,2972.5,5.803]
[1766488970839,0.1682,2974.4,2972.9,1.19568421]
[1766488971036,4.55968421,2974.3,2973.4,0.00504506]
[1766488971232,1.36388421,2974.4,2973.5,3.364]
[1766488971432,1.42865045,2974.4,2973.5,3.426]
[1766488971627,1.42865045,2974.4,2973.5,3.364]
[1766488972141,0.23296624,2974.4,2973.5,3.364]
[1766488972541,0.17096624,2974.4,2973.6,0.062]
[1766488972938,0.062,2974.3,2973.6,0.062]
[1766488973141,0.17096624,2974.4,2973.5,3.364]
[1766488973534,0.00276624,2974.4,2973.6,0.0576]
[1766488973740,0.25,2974.9,2973.6,0.0576]
[1766488973942,0.25,2974.9,2973.5,3.364]
[1766488974142,0.0576,2974.8,2973.6,0.0576]
[1766488974536,0.0576,2974.8,2973.5,3.364]
[1766488974733,0.06065391,2974.8,2973.6,0.0576]
[1766488974938,3.42465391,2974.8,2973.6,0.0576]
[1766488975138,3.42465391,2974.8,2973.5,3.364]
[1766488975339,0.06065391,2974.8,2973.5,3.364]
[1766488975540,3.42465391,2974.8,2973.5,3.364]
[1766488975741,3.42465391,2974.8,2973.6,0.0576]
[1766488975935,3.36705391,2974.8,2973.6,0.0576]
[1766488976139,3.36705391,2974.8,2973.5,3.364]
[1766488976335,0.0576,2974.7,2973.6,0.0576]
[1766488977141,3.53523391,2974.8,2973.5,3.364]
[1766488977342,0.0571,2974.6,2973.7,0.0571]
[1766488977647,3.364,2974.5,2973.8,3.364]
[1766488978142,3.364,2974.5,2973.7,0.0571]
[1766488978448,3.364,2974.5,2973.8,3.364]
[1766488978741,0.0571,2974.4,2973.8,3.364]
[1766488979142,0.0571,2974.4,2973.8,3.4211]
[1766488979343,0.0571,2974.4,2973.8,0.0571]
[1766488980137,3.364,2974.5,2973.7,3.364]
[1766488980344,3.4209,2974.5,2973.8,0.05689999]
[1766488980743,3.4209,2974.5,2973.7,3.364]
[1766488980944,3.4209,2974.5,2973.8,0.05689999]
[1766488981133,3.364,2974.5,2973.8,0.05689999]
[1766488981338,3.53218,2974.7,2973.7,3.364]
[1766488981539,0.0569,2974.6,2973.8,0.05689999]
[1766488982741,3.53218,2974.7,2973.8,0.05689999]
[1766488982946,0.22509,2974.6,2973.9,2.8518]
[1766488983148,0.22509,2974.6,2973.8,3.364]
[1766488983344,0.16819,2974.6,2973.4,0.00504506]
[1766488983540,0.16819,2974.6,2973.5,3.364]
[1766488983942,0.24679,2974.5,2973.4,0.08364506]
[1766488984247,0.00305391,2974.8,2973.4,3.44764506]
[1766488984248,3.5322,2974.4,2973.4,3.44764506]
[1766488984446,3.364,2974.3,2973.4,3.36904506]
[1766488985036,3.364,2974.3,2973.4,0.00504506]
[1766488985241,3.364,2974.3,2973.4,3.36904506]
[1766488985444,0.1682,2974.4,2973.4,3.36904506]
[1766488985652,3.364,2974.3,2973.4,3.36904506]
[1766488985844,3.364,2974.3,2973.5,0.0786]
[1766488986042,0.1682,2974.4,2973.5,0.0786]
[1766488986243,0.1682,2974.4,2973.4,3.36904506]
[1766488986450,3.364,2974.6,2973.5,0.0786]
[1766488986646,0.1682,2974.4,2973.5,0.0786]
[1766488986850,0.1682,2974.4,2973.4,3.36904506]
[1766488987046,0.1682,2974.4,2973.4,0.00504506]
[1766488987243,0.1682,2974.4,2973.5,3.364]
[1766488987444,0.2501,2974.4,2973.5,3.4459]
[1766488987638,0.1682,2974.4,2973.5,3.364]
[1766488987846,0.1682,2974.4,2973.6,3.4459]
[1766488988046,0.1682,2974.4,2973.6,3.364]
[1766488994552,3.364,2974.6,2973.6,3.364]
[1766488997846,3.364,2974.6,2973.6,5.46]
[1766488998041,1.19483618,2974.2,2973.7,3.363]
[1766488999248,1.19483618,2974.4,2973.8,3.363]
[1766488999647,1.19483618,2974.2,2973.8,3.363]
[1766488999847,1.19483618,2974.2,2973.7,0.0801]
[1766489000042,1.19483618,2974.0,2973.4,0.00504506]
[1766489000246,1.19483618,2973.8,2973.4,3.363]
[1766489001053,1.19483618,2973.8,2973.1,6.248]
[1766489001054,1.19483618,2973.6,2973.2,3.363]
[1766489001258,0.0828,2973.7,2973.2,3.363]
[1766489001259,0.00504506,2973.7,2973.2,3.363]
[1766489003454,0.00504506,2973.7,2973.1,0.00504506]
[1766489003751,0.00504506,2973.7,2973.1,3.36804506]
[1766489004156,0.0829,2973.6,2973.1,3.36804506]
[1766489004550,0.00504506,2973.7,2973.1,3.36804506]
[1766489004744,0.08794506,2973.7,2973.1,3.45094506]
[1766489004952,0.08794506,2973.7,2973.1,0.0829]
[1766489005256,0.16827,2973.2,2972.2,3.363]
[1766489005448,3.363,2973.1,2972.2,3.363]
[1766489005649,3.363,2973.1,2972.3,0.0863]
[1766489006154,0.0863,2973.0,2972.4,0.00504506]
[1766489006551,3.53127,2973.1,2971.6,40.8]
[1766489006552,0.16829,2972.9,2971.6,40.8]
[1766489006754,0.16829,2972.9,2972.1,3.364]
[1766489006954,0.16825,2973.5,2972.2,0.0863]
[1766489007251,3.53225,2973.5,2972.2,0.0863]
[1766489007453,0.0865,2973.4,2972.1,3.364]
[1766489007652,0.0865,2973.4,2972.5,0.00504506]
[1766489007847,0.0865,2973.4,2972.6,3.364]
[1766489008354,0.0865,2973.3,2972.7,0.0865]
[1766489008558,0.0865,2973.3,2972.6,3.364]
[1766489008756,0.16825,2973.4,2972.6,3.4505]
[1766489009748,0.25475,2973.4,2972.6,3.364]
[1766489009960,0.16825,2973.4,2972.6,3.364]
[1766489010161,3.364,2973.6,2972.7,0.0865]
[1766489010358,4.506e-05,2973.7,2972.7,0.0865]
[1766489010659,4.506e-05,2973.7,2972.6,3.364]
[1766489010862,4.506e-05,2973.7,2972.8,0.0865]
[1766489011161,4.506e-05,2973.7,2972.9,3.364]
[1766489013968,0.16822,2974.1,2972.9,3.364]
[1766489014261,3.364,2974.3,2972.9,3.364]
[1766489014262,0.2459,2974.0,2972.9,3.364]
[1766489014468,3.364,2974.3,2973.0,0.0866]
[1766489014655,3.364,2974.3,2973.1,5.215]
[1766489014860,3.364,2974.3,2973.2,3.364]
[1766489015062,3.53219,2974.6,2973.2,3.364]
[1766489015261,3.53219,2974.6,2973.3,0.0867]
[1766489015262,3.61889,2974.6,2973.3,0.0867]
[1766489015461,0.1682,2974.3,2973.4,3.364]
[1766489015768,0.1682,2974.3,2973.3,0.0867]
[1766489015769,3.364,2974.2,2973.1,46.061]
[1766489015973,0.00504506,2973.9,2973.4,0.0867]
[1766489016270,0.00504506,2973.9,2973.4,3.364]
[1766489016468,0.00504506,2973.9,2973.5,0.0867]
[1766489016668,0.00504506,2973.9,2973.5,3.364]
[1766489017768,0.00504506,2973.9,2972.8,40.8]
[1766489017961,0.00504506,2973.9,2972.9,9.61]
[1766489018162,0.00504506,2973.9,2972.8,40.8]
[1766489018365,0.00504506,2973.9,2973.0,6.248]
[1766489019672,0.00504506,2973.9,2972.8,40.8]
[1766489019872,0.00504506,2973.9,2972.9,9.623]
[1766489020960,4.506e-05,2973.9,2972.9,50.423]
[1766489021366,4.506e-05,2973.9,2972.3,0.16831]
[1766489021570,4.506e-05,2973.9,2972.6,18.049]
[1766489021865,4.506e-05,2973.9,2972.7,40.8]
[1766489030388,0.2459,2973.8,2972.7,40.8]
[1766489030691,0.2459,2973.8,2972.8,9.719]
[1766489030988,4.506e-05,2973.9,2972.8,9.719]
[1766489031987,4.506e-05,2973.9,2972.7,49.21]
[1766489031988,4.506e-05,2973.9,2972.7,40.8]
[1766489032285,4.506e-05,2973.9,2972.5,0.00504506]
[1766489032484,0.16823,2973.8,2972.6,3.465]
[1766489033783,0.16823,2973.8,2972.5,0.00504506]
[1766489033991,0.16823,2973.8,2972.7,4.631]
[1766489034494,0.0317,2973.7,2972.8,0.0317]
[1766489034791,0.0317,2973.7,2972.9,3.364]
[1766489034988,0.16823,2973.8,2972.9,3.364]
[1766489035289,0.0317,2973.6,2972.9,3.3957]
[1766489035692,0.16823,2973.8,2972.9,3.3957]
[1766489035891,0.0317,2973.7,2972.9,3.3957]
[1766489036086,0.16823,2973.8,2972.5,0.00504506]
[1766489036288,3.364,2973.6,2972.6,3.3957]
[1766489036493,3.364,2973.6,2972.6,9.7667]
[1766489036693,3.364,2973.6,2972.6,9.735]
[1766489036885,0.0317,2973.5,2972.7,0.0317]
[1766489037381,0.16825,2973.5,2972.5,9.74004506]
[1766489038689,3.364,2973.6,2972.5,0.00504506]
[1766489038690,0.16826,2973.4,2972.5,0.00504506]
[1766489038894,0.16827,2973.1,2972.2,3.364]
[1766489039092,0.16828,2972.9,2972.2,3.364]
[1766489039299,0.16828,2972.9,2972.2,3.3971]
[1766489039594,0.16828,2972.9,2972.2,3.364]
[1766489040094,0.16828,2972.9,2972.3,0.00504506]
[1766489040496,0.03310001,2972.8,2972.2,0.0331]
[1766489040698,3.364,2972.7,2972.1,0.00363752]
[1766489040993,3.36740682,2972.7,2972.2,0.0331]
[1766489041195,3.36740682,2972.7,2972.1,0.00363752]
[1766489041396,3.36740682,2972.7,2972.1,0.00868258]
[1766489041801,0.00340682,2972.7,2972.1,0.00868258]
[1766489042001,3.36740682,2972.7,2972.1,0.00868258]
[1766489042502,3.36740682,2972.7,2972.2,0.0332]
[1766489042891,3.36740682,2972.7,2972.1,0.00868258]
[1766489043091,3.36740682,2972.7,2972.2,0.0332]
[1766489043294,3.36740682,2972.7,2972.1,0.00868258]
[1766489044196,0.00340682,2972.7,2972.1,3.06268258]
[1766489044400,0.16824,2973.7,2972.2,6.368]
[1766489044586,1.1959644,2973.3,2972.2,6.3796]
[1766489044787,4.5599644,2973.3,2972.2,6.368]
[1766489045203,4.5599644,2973.3,2972.5,0.00504506]
[1766489045498,4.58111119,2973.3,2972.6,3.364]
[1766489045700,4.56331119,2973.3,2972.6,3.364]
[1766489045900,4.58111119,2973.3,2972.7,0.0178]
[1766489048102,3.38514679,2973.3,2972.7,0.0178]
[1766489051707,1.1959644,2973.2,2972.6,3.365]
[1766489051903,1.2137644,2973.2,2972.6,3.365]
[1766489052099,1.1959644,2973.2,2972.6,3.365]
[1766489054706,1.1959644,2973.2,2972.5,3.37294738]
[1766489054905,1.1959644,2973.2,2972.5,0.00794738]
[1766489055105,1.2107644,2973.2,2972.6,0.01479999]
[1766489055901,1.1959644,2973.2,2972.5,0.00794738]
[1766489056102,1.1959644,2972.9,2972.2,3.365]
[1766489056302,3.365,2972.9,2972.2,3.365]
[1766489056609,0.18327,2973.1,2972.3,0.015]
[1766489056912,3.365,2973.0,2972.3,0.015]
[1766489057210,3.365,2973.0,2972.4,0.00504506]
[1766489057608,3.38,2973.0,2972.5,0.015]
[1766489059111,0.015,2973.0,2972.5,0.015]
[1766489059313,3.365,2972.9,2972.5,0.015]
[1766489059516,3.365,2972.9,2972.4,0.00504506]
[1766489059714,3.365,2972.9,2972.4,0.02004506]
[1766489060919,0.015,2973.0,2972.4,0.02004506]
[1766489061120,3.365,2972.9,2972.4,0.00504506]
[1766489061419,3.365,2972.9,2972.4,0.01724505]
[1766489061714,3.365,2972.9,2972.4,0.00504506]
[1766489062925,3.365,2972.9,2971.8,3.365]
[1766489062926,1.1959644,2972.6,2971.8,3.365]
[1766489063120,4.5609644,2972.6,2971.8,3.365]
[1766489063618,4.5609644,2972.6,2971.9,0.0126]
[1766489063821,4.5609644,2972.6,2972.0,0.00504506]
[1766489063822,0.00504506,2972.5,2972.0,0.00504506]
[1766489064311,0.00504506,2972.5,2972.0,0.01764506]
[1766489066220,1.1959644,2972.1,2971.5,8.224]
[1766489066517,3.365,2972.2,2971.5,8.224]
[1766489067223,3.365,2972.2,2971.6,0.00331837]
[1766489067725,3.365,2972.2,2971.7,0.0094]
[1766489068125,1.1959644,2972.1,2971.5,0.00380955]
[1766489068419,1.2053644,2972.1,2971.5,0.0094]
[1766489068609,1.1959644,2972.1,2971.3,3.365]
[1766489068813,1.1959644,2972.1,2971.4,0.0094]
[1766489069219,1.1959644,2972.1,2971.4,0.00429412]
[1766489070724,4.5703644,2972.2,2971.4,0.00429412]
[1766489070923,3.3744,2972.2,2971.5,0.0095]
[1766489071324,3.365,2972.2,2971.4,0.00429412]
[1766489071827,0.16832,2972.3,2971.4,0.00429412]
[1766489080025,1.19643105,2972.2,2971.4,0.00429412]
[1766489080929,1.19643105,2972.0,2971.5,3.0499]
[1766489081432,0.0156,2971.9,2971.5,3.0499]
[1766489082033,0.0156,2971.9,2971.5,3.05377238]
[1766489082827,1.19643105,2972.0,2970.8,40.8]
[1766489083027,0.0156,2971.9,2971.1,6.30827239]
[1766489083233,0.0156,2971.9,2971.2,3.366]
[1766489083436,1.36475105,2972.3,2971.2,3.366]
[1766489083828,0.0165,2972.2,2971.3,0.0165]
[1766489084228,1.36475105,2972.3,2971.2,3.36905813]
[1766489084533,0.0165,2972.1,2971.3,0.0165]
[1766489085032,1.36475105,2972.3,2971.2,3.36905813]
[1766489085234,0.0165,2972.0,2971.3,0.0165]
[1766489085636,0.0165,2972.0,2971.2,3.36905813]
[1766489085836,0.0165,2972.0,2971.3,0.0165]
[1766489086346,0.0165,2972.0,2971.2,3.36905813]
[1766489086539,0.0165,2972.0,2971.3,0.0165]
[1766489086935,0.0165,2972.0,2971.2,3.36905813]
[1766489087240,0.0165,2972.0,2971.3,0.0165]
[1766489088048,0.0165,2972.0,2971.2,3.36905813]
[1766489088242,1.36475105,2972.3,2971.3,0.0165]
[1766489088647,1.36475105,2972.3,2971.2,3.36905813]
[1766489088942,0.0165,2972.2,2971.3,0.0165]
[1766489089349,0.0165,2972.2,2971.2,3.36905813]
[1766489089549,1.36475105,2972.3,2971.3,0.0165]
[1766489089944,0.0165,2972.2,2971.2,3.36905813]
[1766489096150,1.36475105,2972.3,2971.2,3.36905813]
[1766489097051,3.37104506,2972.5,2971.3,0.0165]
[1766489097554,1.19643105,2972.4,2971.2,3.36905813]
[1766489097747,1.19643105,2972.4,2971.2,0.00305813]
[1766489098054,1.19643105,2972.2,2971.3,9.7225]
[1766489098449,1.19643105,2972.2,2971.3,9.706]
[1766489099448,1.19643105,2971.8,2971.4,3.366]
[1766489100156,1.19643105,2972.0,2971.4,3.366]
[1766489100457,1.19643105,2971.8,2971.4,2.6571]
[1766489100651,1.19643105,2971.8,2971.4,1.9482]
[1766489101357,3.53432,2972.2,2971.4,1.952498]
[1766489101558,1.19643105,2972.0,2971.4,1.952498]
[1766489102556,1.19643105,2972.0,2971.4,1.440498]
[1766489102758,1.19643105,2972.0,2971.4,0.928498]
[1766489103158,3.53432,2972.2,2971.4,0.928498]
[1766489103359,1.19643105,2972.1,2971.4,0.928498]
[1766489103561,1.19643105,2972.1,2971.4,0.004298]
[1766489103865,0.0775,2972.0,2971.4,0.004298]
[1766489108362,1.19643105,2971.9,2971.4,0.004298]
[1766489108551,1.19643105,2971.9,2971.3,3.4435]
[1766489108756,1.19643105,2971.9,2971.3,3.366]
[1766489108956,1.19643105,2971.9,2970.6,1.19643105]
[1766489109158,0.0712,2971.8,2970.7,18.1882]
[1766489109559,0.0712,2971.8,2970.7,18.117]
[1766489109753,0.0712,2971.8,2970.7,18.11937107]
[1766489110163,3.366,2971.9,2970.8,9.7733]
[1766489110354,1.19643105,2971.8,2970.8,9.7733]
[1766489110560,1.19643105,2971.8,2970.8,9.702]
[1766489110760,1.19643105,2971.8,2970.9,0.0713]
[1766489111161,1.19643105,2971.8,2970.8,9.702]
[1766489111360,1.19643105,2971.8,2970.9,0.0713]
[1766489111758,1.26773105,2971.8,2970.8,9.702]
[1766489112267,1.19643105,2971.6,2970.9,0.071]
[1766489112656,1.19643105,2971.4,2970.7,0.00237107]
[1766489112862,1.19643105,2971.4,2970.8,9.701]
[1766489113369,1.19643105,2971.4,2970.9,0.071]
[1766489115062,1.19643105,2971.4,2970.7,0.00237107]
[1766489115267,0.071,2971.3,2970.8,9.7]
[1766489115769,1.19643105,2971.2,2970.8,9.7]
[1766489115965,1.19643105,2971.0,2969.8,8.415]
[1766489116158,1.19643105,2970.4,2969.1,5.42846785]
[1766489116368,1.19643105,2970.6,2969.3,9.61143105]
[1766489116668,1.46273105,2970.6,2969.3,8.415]
[1766489116869,1.19643105,2970.6,2969.4,1.19643105]
[1766489117166,1.19643105,2970.4,2969.5,3.366]
[1766489117375,1.19643105,2970.4,2969.5,3.6323]
[1766489117570,1.19643105,2970.4,2969.4,0.00336454]
[1766489117571,1.19643105,2970.0,2969.6,3.366]
[1766489117977,1.19643105,2970.2,2969.6,3.366]
[1766489118378,0.2663,2970.1,2969.6,3.366]
[1766489123277,3.367,2970.2,2969.6,3.366]
[1766489123479,1.19643105,2969.9,2969.4,0.00336454]
[1766489123773,1.19643105,2970.1,2969.2,0.012]
[1766489123977,0.00504506,2969.9,2969.3,3.367]
[1766489124582,0.00504506,2969.9,2969.3,3.37054081]
[1766489124885,0.00504506,2969.9,2969.4,0.2676]
[1766489129181,0.00504506,2969.9,2969.5,1.19643105]
[1766489129380,0.16843,2970.3,2969.5,1.19643105]
[1766489129381,3.367,2970.1,2969.5,1.19643105]
[1766489129881,3.634,2970.1,2969.6,0.267]
[1766489130097,1.36482105,2971.0,2969.7,4.56343105]
[1766489130395,0.2671,2970.4,2970.1,0.00504505]
[1766489130596,3.367,2970.5,2969.8,1.09997611]
[1766489130786,0.2671,2970.4,2969.8,1.36707611]
[1766489130988,0.00504506,2970.6,2969.7,3.367]
[1766489131288,0.16839,2971.0,2970.3,1.19643105]
[1766489131488,3.367,2971.5,2970.9,1.19643105]
[1766489131694,3.53535,2971.7,2970.9,1.19643105]
[1766489132192,3.53535,2971.7,2970.7,4.56343105]
[1766489132388,0.00504506,2971.5,2970.9,0.00504506]
[1766489132589,0.00849953,2971.5,2970.9,0.00504506]
[1766489132985,0.2901,2971.4,2970.9,0.00504506]
[1766489134394,3.6571,2971.4,2970.9,0.00504506]
[1766489135490,0.29009999,2971.3,2970.5,3.367]
[1766489136196,3.367,2971.4,2970.5,3.367]
[1766489136396,0.2999,2971.3,2970.6,0.2999]
[1766489137385,3.367,2971.4,2970.6,0.2999]
[1766489137688,0.2999,2971.3,2970.5,3.367]
[1766489138089,0.16837,2971.3,2970.5,3.6669]
[1766489138800,0.16837,2971.3,2970.6,1.19643105]